Workbook

Sheet MSU
B1: Aleksi Karttunen | E1: 10.5.1998 Jyväskylä
B2: SUPERPESIS | E2: Runkosarja | I2: Kärkilyönnit (KL), pesänvälit | P2: Runkosarja TOP-30 | U2: Ylempi loppusarja | AB2: Ylempi loppusarja TOP-10 | AG2: Play off, voitot, voittoprosentti | AL2: Arvo-ottelut | AO2: Mitalit
B3: Vuosi | C3: Sija | D3: Seura | E3: OTT | F3: KUN | G3: LÖI | H3: TOI | I3: KL | J3: 0 > 1 | K3: 1 > 2 | L3: 2 > 3 | M3: 3 > k | N3: KL-% | P3: LÖI | Q3: TOI | R3: L+T | S3: KL | U3: OTT | V3: KUN | W3: LÖI | X3: TOI | Y3: KL | Z3: KL-% | AB3: LÖI | AC3: TOI | AD3: L+T | AE3: KL | AG3: Puolivälierät | AH3: Välierät | AI3: Pronssi | AJ3: Finaalit | AL3: IL | AM3: LL | AN3: hSM | AO3: K | AP3: H | AQ3: P
B4: 2015 | C4: 4. | D4: Kiri 2 | F4: suomensarja | AA4: 0
B5: 2016 | C5: 1. | D5: Lohi | F5: suomensarja | AA5: 0
B6: 2017 | C6: 5. | D6: Kiri | F6: ykköspesis | AA6: 0
B7: 2018 | C7: 3. | D7: Manse PP | F7: ykköspesis | AA7: 0
B8: 2019 | C8: 1. | D8: Lohi | F8: suomensarja | AA8: 0
B9: 2020 | C9: 1. | D9: Lohi | F9: suomensarja | AA9: 0
B10: 2021 | C10: 2. | D10: Lohi | F10: ykköspesis | AA10: 0
B11: 2022 | C11: 6. | D11: Lohi | F11: ykköspesis | AA11: 0
B12: 2023 | C12: 7. | D12: Kiri 2020 | F12: ykköspesis | AA12: 0
B13: Yhteensä | E13: =SUM(E6:E12) -> 0 | F13: 0 | G13: 0 | H13: 0 | I13: 0 | J13: 0 | K13: 0 | L13: 0 | M13: 0 | N13: 0.0 % | O13: =SUM(O6:O12) -> 0 | P13: 0-0-0 | Q13: 0-0-0 | R13: 0-0-0 | S13: 0-0-0 | U13: =SUM(U4:U12)-U5 -> 0 | V13: =SUM(V4:V12)-V5 -> 0 | W13: =SUM(W4:W12)-W5 -> 0 | X13: =SUM(X4:X12)-X5 -> 0 | Y13: =SUM(Y4:Y12)-Y5 -> 0 | Z13: =PRODUCT(N19) -> 0.0 % | AA13: =SUM(AA3:AA12) -> 0 | AB13: 0-0-0 | AC13: 0-0-0 | AD13: 0-0-0 | AE13: 0-0-0 | AG13: 0/0 | AH13: 0/0 | AI13: 0/0 | AJ13: 0/0 | AL13: =SUM(AL4:AL12) -> 0 | AM13: 0 | AN13: 0 | AO13: 0 | AP13: 0 | AQ13: 0
AG14: 0.0 % | AH14: 0.0 % | AI14: 0.0 % | AJ14: 0.0 %
B15: Pesispörssi | D15: =SUM(F13:H13)+((I13-F13-G13)/3)+(E13/3)+(AL13*25)+(AM13*25)+(AN13*10)+(AO13*25)+(AP13*20)+(AQ13*15) -> 0.0
B17: URA SUPERISSA | E17: OTT | F17: KUN | G17: LÖI | H17: TOI | I17: KL | K17: ka/L | L17: ka/T | M17: ka/KL | N17: KL-% | P17: ENSIMMÄISET RUNKOSARJASSA | AG17: ENSIMMÄISET PUDOTUSPELEISSÄ | AL17: YLEISÖ
B18: Runkosarja | O18: =PRODUCT(O13) -> 0 | P18: Ottelu | AG18: Ottelu
B19: Ylempi loppusarja | P19: Lyöty | AG19: Lyöty
B20: Alempi loppusarja | E20: 3 | F20: 0 | G20: 1 | H20: 0 | I20: 8 | K20: 3.00 | L20: 0.00 | M20: 1.00 | N20: =PRODUCT(I20/O20) -> 80.0 % | O20: 10 | P20: Tuotu | AG20: Tuotu
B21: KAIKKI | E21: =SUM(E18:E20) -> 3 | F21: =SUM(F18:F20) -> 0 | G21: =SUM(G18:G20) -> 1 | H21: =SUM(H18:H20) -> 0 | I21: =SUM(I18:I20) -> 8 | K21: =PRODUCT((F21+G21)/E21) -> 0.33 | L21: =PRODUCT(H21/E21) -> 0.00 | M21: =PRODUCT(I21/E21) -> 2.67 | N21: =PRODUCT(I21/O21) -> 80.0 % | O21: =SUM(O18:O20) -> 10 | P21: Kunnari | AG21: Kunnari
B23: Seurat | D23: Kiri = Jyväskylän Kiri (1930), kasvattajaseura
D24: Manse PP = Manse PP Edustus (2015)
D25: Lohi = Jyväskylän Lohi (1924)
D26: Kiri 2020 = Jyväskylän Kiri 2020 (2020)

Sheet MYP, MSS
B1: Aleksi Karttunen | E1: 10.5.1998 Jyväskylä
B2: YKKÖSPESIS | E2: Runkosarja | L2: Runkosarja TOP-10 | Q2: Jatkosarjat | X2: SUOMENSARJA | AA2: Runkosarja | AH2: Runkosarja TOP-10 | AM2: Jatkosarjat
B3: Vuosi | C3: Sija | D3: Seura | E3: OTT | F3: KUN | G3: LÖI | H3: TOI | I3: KL | J3: KL-% | L3: LÖI | M3: TOI | N3: L+T | O3: KL | Q3: OTT | R3: KUN | S3: LÖI | T3: TOI | U3: KL | V3: KL-% | X3: Vuosi | Y3: Sija | Z3: Seura | AA3: OTT | AB3: KUN | AC3: LÖI | AD3: TOI | AE3: KL | AF3: KL-% | AH3: LÖI | AI3: TOI | AJ3: L+T | AK3: KL | AM3: OTT | AN3: KUN | AO3: LÖI | AP3: TOI | AQ3: KL | AR3: KL-%
X4: 2015 | Y4: 4. | Z4: Kiri 2 | AA4: 8 | AB4: 0 | AC4: 3 | AD4: 2 | AE4: 33 | AF4: 71.7 % | AG4: 46 | AM4: 1 | AN4: 0 | AO4: 0 | AP4: 0 | AQ4: 3 | AR4: 50.0 % | AS4: 6
X5: 2016 | Y5: 1. | Z5: Lohi | AA5: 16 | AB5: 0 | AC5: 9 | AD5: 8 | AE5: 60 | AF5: 57.1 % | AG5: 105 | AM5: 8 | AN5: 0 | AO5: 6 | AP5: 3 | AQ5: 29 | AR5: 56.9 % | AS5: 51
B6: 2017 | C6: 5. | D6: Kiri | E6: 17 | F6: 0 | G6: 9 | H6: 0 | I6: 35 | J6: 38.5 % | K6: 91
B7: 2018 | C7: 3. | D7: Manse PP | E7: 4 | F7: 0 | G7: 1 | H7: 0 | I7: 11 | J7: 47.8 % | K7: 23
X8: 2019 | Y8: 1. | Z8: Lohi | AA8: 16 | AB8: 4 | AC8: 24 | AD8: 23 | AE8: 94 | AF8: 67.6 % | AG8: 139 | AH8: 9. | AJ8: 4. | AK8: 5. | AM8: 7 | AN8: 0 | AO8: 5 | AP8: 4 | AQ8: 30 | AR8: 55.6 % | AS8: 54
X9: 2020 | Y9: 1. | Z9: Lohi | AA9: 8 | AB9: 0 | AC9: 13 | AD9: 9 | AE9: 33 | AF9: 60.0 % | AG9: 55 | AJ9: 10. | AM9: 4 | AN9: 1 | AO9: 7 | AP9: 8 | AQ9: 19 | AR9: 54.3 % | AS9: 35
B10: 2021 | C10: 2. | D10: Lohi | E10: 22 | F10: 1 | G10: 23 | H10: 11 | I10: 67 | J10: 55.4 % | K10: 121 | Q10: 3 | R10: 0 | S10: 2 | T10: 1 | U10: 10 | V10: 55.6 % | W10: 18
B11: 2022 | C11: 6. | D11: Lohi | E11: 24 | F11: 0 | G11: 20 | H11: 2 | I11: 69 | J11: 53.9 % | K11: 128
B12: 2023 | C12: 7. | D12: Kiri 2020 | E12: 24 | F12: 2 | G12: 38 | H12: 6 | I12: 55 | J12: 39.0 % | K12: 141 | L12: 7. | N12: 10.
B13: YHTEENSÄ | E13: =SUM(E4:E12) -> 91 | F13: =SUM(F4:F12) -> 3 | G13: =SUM(G4:G12) -> 91 | H13: =SUM(H4:H12) -> 19 | I13: =SUM(I4:I12) -> 237 | J13: =PRODUCT(I13/K13) -> 47.0 % | K13: =SUM(K4:K12) -> 504 | Q13: =SUM(Q4:Q12) -> 3 | R13: =SUM(R4:R12) -> 0 | S13: =SUM(S4:S12) -> 2 | T13: =SUM(T4:T12) -> 1 | U13: =SUM(U4:U12) -> 10 | V13: =PRODUCT(U13/W13) -> 55.6 % | W13: =SUM(W4:W12) -> 18 | X13: YHTEENSÄ | AA13: =SUM(AA4:AA12) -> 48 | AB13: =SUM(AB4:AB12) -> 4 | AC13: =SUM(AC4:AC12) -> 49 | AD13: =SUM(AD4:AD12) -> 42 | AE13: =SUM(AE4:AE12) -> 220 | AF13: =PRODUCT(AE13/AG13) -> 63.8 % | AG13: =SUM(AG4:AG12) -> 345 | AM13: =SUM(AM4:AM12) -> 20 | AN13: =SUM(AN4:AN12) -> 1 | AO13: =SUM(AO4:AO12) -> 18 | AP13: =SUM(AP4:AP12) -> 15 | AQ13: =SUM(AQ4:AQ12) -> 81 | AR13: =PRODUCT(AQ13/AS13) -> 55.5 % | AS13: =SUM(AS4:AS12) -> 146
B15: KAIKKI OTTELUT | E15: OTT | F15: KUN | G15: LÖI | H15: TOI | I15: KL | J15: KL-% | L15: ka/L | M15: ka/T | N15: ka/l+t | O15: ka/kl | R15: Seurat | T15: Kiri = Jyväskylän Kiri (1930), kasvattajaseura
B16: SUPERPESIS | E16: 3 | F16: 0 | G16: 1 | H16: 0 | I16: 8 | J16: 80.0 % | K16: =PRODUCT(I16/J16) -> 10 | L16: =PRODUCT((F16+G16)/E16) -> 0.33 | M16: =PRODUCT(H16/E16) -> 0.00 | N16: =PRODUCT((F16+G16+H16)/E16) -> 0.33 | O16: =PRODUCT(I16/E16) -> 2.67 | T16: Manse PP = Manse PP Edustus (2015)
B17: YKKÖSPESIS | E17: =PRODUCT(E13+Q13) -> 94 | F17: =PRODUCT(F13+R13) -> 3 | G17: =PRODUCT(G13+S13) -> 93 | H17: =PRODUCT(H13+T13) -> 20 | I17: =PRODUCT(I13+U13) -> 247 | J17: =PRODUCT(I17/K17) -> 47.3 % | K17: =PRODUCT(K13+W13) -> 522 | L17: =PRODUCT((F17+G17)/E17) -> 1.02 | M17: =PRODUCT(H17/E17) -> 0.21 | N17: =PRODUCT((F17+G17+H17)/E17) -> 1.23 | O17: =PRODUCT(I17/E17) -> 2.63 | T17: Lohi = Jyväskylän Lohi (1924)
B18: SUOMENSARJA | E18: =PRODUCT(AA13+AM13) -> 68 | F18: =PRODUCT(AB13+AN13) -> 5 | G18: =PRODUCT(AC13+AO13) -> 67 | H18: =PRODUCT(AD13+AP13) -> 57 | I18: =PRODUCT(AE13+AQ13) -> 301 | J18: =PRODUCT(I18/K18) -> 61.3 % | K18: =PRODUCT(AG13+AS13) -> 491 | L18: =PRODUCT((F18+G18)/E18) -> 1.06 | M18: =PRODUCT(H18/E18) -> 0.84 | N18: =PRODUCT((F18+G18+H18)/E18) -> 1.90 | O18: =PRODUCT(I18/E18) -> 4.43 | T18: Kiri 2020 = Jyväskylän Kiri 2020 (2020)
B19: YHTEENSÄ | E19: =SUM(E16:E18) -> 165 | F19: =SUM(F16:F18) -> 8 | G19: 161 | H19: 77 | I19: 556 | J19: =PRODUCT(I19/K19) -> 54.3 % | K19: =SUM(K16:K18) -> 1023 | L19: =PRODUCT((F19+G19)/E19) -> 1.02 | M19: =PRODUCT(H19/E19) -> 0.47 | N19: =PRODUCT((F19+G19+H19)/E19) -> 1.49 | O19: =PRODUCT(I19/E19) -> 3.37
